Cogmind - Beta 13 @@@ ROGUE MODE // 2024.04.06 @ 16:52:37 Player: emory Result: Destroyed by G-47 Trooper with Particle Gun Performance ------------- Evolutions (3) 1500 Regions Visited (6) 1200 Robots Destroyed (14) 70 Value Destroyed (297) 297 Prototype IDs (26) 520 Alien Tech Used (0) 0 Bonus (300) 300 TOTAL SCORE: 3887 Bonus ------- Aligned with FarCom 300 Cogmind --------- Core Integrity 0/700 Matter 196/300 Energy 100/100 System Corruption 2% Temperature Cool (9) Movement Core (700) Ox13 Location -7/Factory Parts ------- > --- POWER (2) -------- (None) > --- PROPULSION (4) --- (None) > --- UTILITY (5) ------ High-capacity Storage Unit > --- WEAPON (2) ------- (None) > --- INVENTORY (20) --- Light Treads Light Treads Aluminum Leg Aluminum Leg Flight Unit Heat Sink Improved Datajack Peak State ------------ > --- POWER ------------ Ion Engine Reinforced Ion Engine > --- PROPULSION ------- Wheel Compact Wheel > --- UTILITY ---------- High-capacity Storage Unit Sensor Array Experimental Sensor Array Cloak of Protection > --- WEAPON ----------- Light Assault Rifle Grenade Launcher > --- INVENTORY -------- Light Ion Engine Light Treads Light Treads Aluminum Leg Aluminum Leg Hover Unit Airjet Flight Unit Sensor Array Improved Datajack Mining Laser [Rating: 27] Favorites ----------- Power Ion Engine Engine Ion Engine Power Core Micro Nuclear Core Propulsion Light Treads Treads Light Treads Leg Aluminum Leg Wheel Compact Wheel Hover Unit Airjet Utility High-capacity Storage Unit Device Cloak of Protection Storage High-capacity Storage Unit Weapon Light Assault Rifle Ballistic Gun Light Assault Rifle Launcher Grenade Launcher Special Weapon Mining Laser Special Melee Weapon Improved Datajack Build | -11 -10 -10 -10 -9 -8 -7 ------- Run | Yrd Mat Min Exi Min Mat Fac Slots Evolved 6 | . . . . . 4 2 Power 1 | . . . . . 1 . Propulsion 2 | . . . . . 1 1 Utility 3 | . . . . . 2 1 Weapon . | . . . . . . . Parts Attached 26 | 4 2 1 3 1 7 8 Power 5 | 1 . . 1 . 1 2 Engine 4 | 1 . . 1 . 1 1 Core 1 | . . . . . . 1 Reactor . | . . . . . . . Propulsion 8 | 2 . . . . 4 2 Treads 2 | 2 . . . . . . Leg 2 | . . . . . 2 . Wheel 2 | . . . . . 2 . Hover 2 | . . . . . . 2 Flight . | . . . . . . . Utility 6 | 1 . . 2 . 2 1 Device 4 | . . . 1 . 2 1 Storage 2 | 1 . . 1 . . . Processor . | . . . . . . . Hackware . | . . . . . . . Protection . | . . . . . . . Artifact . | . . . . . . . Weapon 7 | . 2 1 . 1 . 3 Energy Gun . | . . . . . . . Energy Cannon . | . . . . . . . Ballistic Gun 2 | . 2 . . . . . Ballistic Cannon . | . . . . . . . Launcher 1 | . . . . 1 . . Special Weapon 3 | . . 1 . . . 2 Impact Weapon . | . . . . . . . Slashing Weapon . | . . . . . . . Piercing Weapon . | . . . . . . . Special Melee Weapon 1 | . . . . . . 1 Unidentified Prototypes 1 | . . . . . 1 . Parts Lost 13 | . . . . . 4 9 Power 4 | . . . . . . 4 Propulsion 3 | . . . . . 1 2 Utility 3 | . . . . . 2 1 Weapon 3 | . . . . . 1 2 Highest Loss Streak 9 | . . . . . 4 9 To Critical Strikes . | . . . . . . . Average Slot Usage (%) 81 | . 85 85 87 100 80 52 Engine 14 | . 14 14 14 14 18 13 Treads 18 | . 28 28 28 28 1 . Wheel 3 | . . . . . 16 2 Hover 2 | . . . . . . 14 Device 6 | . . . 2 14 17 3 Storage 11 | . 14 14 14 14 9 7 Ballistic Gun 13 | . 28 15 14 14 9 4 Launcher 3 | . . . . 8 9 . Special Weapon 6 | . . 12 14 5 . 2 Naked Turns . | . . . . . . . Heaviest Build 69 | 8 11 11 55 57 69 59 Greatest Support 40 | 40 40 40 40 40 40 14 Greatest Overweight (x) 13 | 2 . . 1 1 3 13 Average Overweight (x) 1 | . . . . 1 1 3 Largest Inventory Capacity 20 | 8 8 8 20 20 20 20 Average Capacity 17 | 7 8 8 18 20 20 20 Most Carried 12 | 7 8 8 8 10 12 11 Average Carried 8 | 4 6 7 7 9 9 9 Final Capacity 20 | 8 8 8 20 20 20 20 Final Carried 12 | 7 8 7 7 10 12 7 Class Distribution -------------------- 76% | Mutant 19% | Skirmisher 3% | Assassin Dominant Class ---------------- Mutant | -10/Materials Mutant | -10/Mines Mutant | -10/Exiles Mutant | -9/Mines Skirmisher | -8/Materials Mutant | -7/Factory Resources | -11 -10 -10 -10 -9 -8 -7 ----------- Run | Yrd Mat Min Exi Min Mat Fac Matter Collected 502 | 240 108 . . 54 51 49 Remotely . | . . . . . . . Salvage Created 396 | . 310 . . 35 51 . Parts 21 | . 15 . . 4 2 . Haulers Intercepted . | . . . . . . . Recyclers Shooed 2 | . 1 . . . . 1 Parts Field Recycled . | . . . . . . . Retrieved Matter . | . . . . . . . Parts Self-Destructed . | . . . . . . . Prevented . | . . . . . . . Kills | -11 -10 -10 -10 -9 -8 -7 ------- Run | Yrd Mat Min Exi Min Mat Fac Combat Hostiles Destroyed 9 | . 5 . . 3 1 . Guns 6 | . 5 . . . 1 . AOE 3 | . . . . 3 . . Classes Destroyed 7 | . 4 . . 2 1 . Worker 2 | . . . . 2 . . Builder 1 | . 1 . . . . . Recycler 1 | . 1 . . . . . Watcher 1 | . 1 . . . . . Swarmer 3 | . . . . 3 . . Grunt 5 | . 5 . . . . . Sentry 1 | . . . . . 1 . Best Kill Streak 6 | . 6 . . 4 1 . Combat Bots Only 3 | . 2 . . 3 1 . Max Kills in Single Turn 3 | . 1 . . 3 1 . Gunslinging . | . . . . . . . Exploded 2 | . . . . 2 . . Melee . | . . . . . . . Uniques/NPCs Destroyed . | . . . . . . . Combat | -11 -10 -10 -10 -9 -8 -7 -------- Run | Yrd Mat Min Exi Min Mat Fac Hostile Shots Fired 180 | . 27 . . 15 42 96 Missed 36 | . 6 . . 3 5 22 Damage Taken 2387 | . 317 . . 97 700 1273 Core 819 | . 62 . . 14 33 710 Absorbed by Shields . | . . . . . . . Core Remaining (%) 87 | 100 . . . 69 94 . Volleys Fired 80 | . 23 17 . 2 32 6 Largest 2 | . 2 2 . 1 2 1 Hottest 120 | . 40 120 . 30 50 20 Shots Fired 114 | . 46 24 . 2 36 6 Gun 92 | . 46 11 . . 30 5 Cannon . | . . . . . . . Launcher 8 | . . . . 2 6 . Special 14 | . . 13 . . . 1 Kinetic 92 | . 46 11 . . 30 5 Thermal 13 | . . 13 . . . . Explosive 8 | . . . . 2 6 . Electromagnetic . | . . . . . . . Robot Hit Streak 12 | . 11 . . 1 12 3 Robot Miss Streak 6 | . 6 . . 1 4 3 Penetration Max . | . . . . . . . Secondary Targets . | . . . . . . . Shots Hit Robots 53 | . 24 . . 1 25 3 Core Hits 31 | . 14 . . 7 9 1 Critical Kills . | . . . . . . . Critical Parts Destroyed . | . . . . . . . Critical Strikes . | . . . . . . . Melee Attacks . | . . . . . . . Impact . | . . . . . . . Slashing . | . . . . . . . Piercing . | . . . . . . . Sneak Attacks . | . . . . . . . Combat Hostiles . | . . . . . . . Follow-up Attacks . | . . . . . . . Damage Inflicted 1217 | . 318 . . 314 561 24 Guns 488 | . 311 . . . 155 22 Cannons . | . . . . . . . Explosions 671 | . . . . 301 370 . Melee . | . . . . . . . Ramming 58 | . 7 . . 13 36 2 Kinetic 488 | . 311 . . . 155 22 Thermal . | . . . . . . . Explosive 671 | . . . . 301 370 . Electromagnetic . | . . . . . . . Impact . | . . . . . . . Slashing . | . . . . . . . Piercing . | . . . . . . . Highest Corruption 3 | . . . . . 3 2 Average Corruption 2 | . . . . . 2 2 Corruption Purged . | . . . . . . . Corruption Blocked . | . . . . . . . Effects 5 | . . . . . 5 . Matter Fused 1 | . . . . . 1 . Energy Discharges 1 | . . . . . 1 . Data Loss (minor) 2 | . . . . . 2 . Weapon Failures 1 | . . . . . 1 . Overload Shots . | . . . . . . . Overflow Damage 44 | . . . . 19 25 . Projectiles . | . . . . . . . Explosions 38 | . . . . 19 19 . Melee 6 | . . . . . 6 . Knockbacks 1 | . . . . . 1 . Impact 1 | . . . . . 1 . Kinetic . | . . . . . . . Secondary . | . . . . . . . Self-Inflicted Damage 141 | . . . . . 141 . Shots 5 | . . . . . 5 . Rammed 7 | . 2 . . 2 1 2 Targets Rammed 8 | . 3 . . 2 1 2 Kicked . | . . . . . . . Crushed 1 | . 1 . . . . . Highest Temperature 167 | . 27 140 . . 167 29 Average Temperature 46 | . 12 56 . . 55 6 Received Heat Transfer 1245 | . 165 . . . 333 747 Siege Activations . | . . . . . . . Robots Corrupted . | . . . . . . . Combat Hostiles . | . . . . . . . Parts Fried . | . . . . . . . Impact Corruptions 1 | . . . . . 1 . Robots Melted . | . . . . . . . Combat Hostiles . | . . . . . . . Parts Melted . | . . . . . . . Heat Transferred . | . . . . . . . Parts Sabotaged . | . . . . . . . Parts Stolen . | . . . . . . . Parts Stripped . | . . . . . . . Power Chain Reactions . | . . . . . . . Alert | -11 -10 -10 -10 -9 -8 -7 ------- Run | Yrd Mat Min Exi Min Mat Fac Peak Influence 153 | . 153 12 . 83 73 55 Initial 25 | . . . . . 1 25 Average 20 | . 36 4 . 25 8 24 Maximum Alert Level . | . . . . . . . Low Security (%) 100 | 100 100 100 . 100 100 100 Level 1 . | . . . . . . . Level 2 . | . . . . . . . Level 3 . | . . . . . . . Level 4 . | . . . . . . . Level 5 . | . . . . . . . High Security . | . . . . . . . Max Security . | . . . . . . . Squads Dispatched 6 | . 2 . . . 1 3 Investigation 3 | . 1 . . . 1 1 Extermination 1 | . . . . . . 1 Reinforcement 1 | . 1 . . . . . Assault . | . . . . . . . Garrison 1 | . . . . . . 1 Intercept . | . . . . . . . Searches Triggered . | . . . . . . . Construction Impeded . | . . . . . . . Haulers Reinforced . | . . . . . . . Active Scanning Responses . | . . . . . . . Cargo Convoy Interrupts . | . . . . . . . Stealth | -11 -10 -10 -10 -9 -8 -7 --------- Run | Yrd Mat Min Exi Min Mat Fac Distress Signals 2 | . 2 . . . . . Communications Jammed . | . . . . . . . Distress Signals . | . . . . . . . Times Spotted 33 | . 10 . . 4 6 13 Peak Tracking Total 10 | . 3 . . 4 3 10 Tactical Retreats 1 | . . . . . . 1 Traps | -11 -10 -10 -10 -9 -8 -7 ------- Run | Yrd Mat Min Exi Min Mat Fac Traps Triggered 5 | . 3 . . . 2 . Indirectly . | . . . . . . . Trap Hack Attempts . | . . . . . . . Triggered . | . . . . . . . Disarmed . | . . . . . . . Reprogrammed . | . . . . . . . Reused . | . . . . . . . Traps Extracted . | . . . . . . . Installed . | . . . . . . . Triggered . | . . . . . . . Machines | -11 -10 -10 -10 -9 -8 -7 ---------- Run | Yrd Mat Min Exi Min Mat Fac Machines Disabled 1 | . . . . . 1 . Max in Single Turn 1 | . . . . . 1 . Machines Repaired . | . . . . . . . Machines Dismantled . | . . . . . . . Machines Sabotaged . | . . . . . . . Overloaded Fab Kills . | . . . . . . . Hacking | -11 -10 -10 -10 -9 -8 -7 --------- Run | Yrd Mat Min Exi Min Mat Fac Machines Accessed 12 | . 3 . 5 . 2 2 Terminals 7 | . 3 . . . 2 2 Fabricators . | . . . . . . . Repair Stations . | . . . . . . . Recycling Units . | . . . . . . . Scanalyzers . | . . . . . . . Garrison Access . | . . . . . . . Total Hacks 71 | . 7 . 50 . 7 7 Successful 58 | . 3 . 50 . 2 3 Failed 13 | . 4 . . . 5 4 Catastrophic 3 | . . . . . 2 1 Database Lockouts . | . . . . . . . Manual 1 | . . . 1 . . . Terminals 21 | . 7 . . . 7 7 Fabricators . | . . . . . . . Repair Stations . | . . . . . . . Recycling Units . | . . . . . . . Scanalyzers . | . . . . . . . Garrison Access . | . . . . . . . Terminal Hacks 58 | . 3 . 50 . 2 3 Record 50 | . . . 49 . . 1 Prototype ID Bank 1 | . . . . . 1 . Level Access Points 1 | . . . . . . 1 Emergency Access Points 1 | . . . . . . 1 Locate Traps 1 | . 1 . . . . . Hauler Manifests 1 | . . . . . 1 . Zone Layout 2 | . 2 . . . . . Derelict Proto ID Bank 1 | . . . 1 . . . Fabricator Hacks . | . . . . . . . Repair Station Hacks . | . . . . . . . Recycling Unit Hacks . | . . . . . . . Scanalyzer . | . . . . . . . Garrison Access Hacks . | . . . . . . . Unauthorized Hacks . | . . . . . . . Terminals . | . . . . . . . Fabricators . | . . . . . . . Repair Stations . | . . . . . . . Recycling Units . | . . . . . . . Scanalyzers . | . . . . . . . Garrison Access . | . . . . . . . Data Cores Recovered . | . . . . . . . Used . | . . . . . . . Hacking Detections 5 | . 1 . . . 2 2 Full Trace Events 3 | . 1 . . . 1 1 Feedback Events . | . . . . . . . Feedback Blocked . | . . . . . . . Robot Schematics Acquired . | . . . . . . . Robots Built . | . . . . . . . Authchips . | . . . . . . . Time . | . . . . . . . Total Robot Build Rating . | . . . . . . . Part Schematics Acquired . | . . . . . . . Parts Built . | . . . . . . . Authchips . | . . . . . . . Time . | . . . . . . . Total Part Build Rating . | . . . . . . . Parts Repaired . | . . . . . . . Time . | . . . . . . . Parts Recycled . | . . . . . . . Recycled Matter . | . . . . . . . Retrieved Matter . | . . . . . . . Retrieved Components . | . . . . . . . Parts Scanalyzed . | . . . . . . . Part Schematics Acquired . | . . . . . . . Parts Damaged . | . . . . . . . Bothacking | -11 -10 -10 -10 -9 -8 -7 ------------ Run | Yrd Mat Min Exi Min Mat Fac Used RIF Installer . | . . . . . . . Robots Hacked 1 | . . . . . . 1 Non-combat . | . . . . . . . Combat 1 | . . . . . . 1 Robot Hacks Applied 1 | . . . . . . 1 parse_system 1 | . . . . . . 1 Relay Couplers Released . | . . . . . . . Fabnet Peak Effective % . | . . . . . . . Robots Rewired . | . . . . . . . Allies Hacked . | . . . . . . . Hacks Repelled . | . . . . . . . Allies | -11 -10 -10 -10 -9 -8 -7 -------- Run | Yrd Mat Min Exi Min Mat Fac Total Allies . | . . . . . . . Largest Group . | . . . . . . . Highest-Rated Group . | . . . . . . . Highest-Rated Ally . | . . . . . . . Total Orders . | . . . . . . . Ally Attacks . | . . . . . . . Total Damage . | . . . . . . . Kills . | . . . . . . . Allies Corrupted . | . . . . . . . Allies Melted . | . . . . . . . Intel | -11 -10 -10 -10 -9 -8 -7 ------- Run | Yrd Mat Min Exi Min Mat Fac Robot Analysis Total . | . . . . . . . Derelict Logs Recovered 1 | . . . . 1 . . Drone Launches . | . . . . . . . Drone Recoveries . | . . . . . . . Exploration | -11 -10 -10 -10 -9 -8 -7 ------------- Run | Yrd Mat Min Exi Min Mat Fac Turns Passed 4739 | 72 630 195 1559 573 1027 683 Spaces Moved 1910 | 40 348 81 666 228 311 236 Core 20 | 16 . . . . . 4 Treads 1380 | 24 348 81 666 228 33 . Legs . | . . . . . . . Wheels 278 | . . . . . 278 . Hover 232 | . . . . . . 232 Flight . | . . . . . . . Fastest Speed 50 | 50 160 160 160 240 120 236 Average Speed 202 | 146 160 160 228 240 133 275 Slowest Speed 700 | 160 160 160 240 240 240 700 Overloaded Moves . | . . . . . . . Propulsion Burnouts . | . . . . . . . Robots Hopped . | . . . . . . . Cave-ins Triggered . | . . . . . . . Exploration Rate (%) 37 | 4 54 18 93 63 23 8 Regions Visited 6 Branch Regions 3 Pre-discovered Areas 2 | . . . 1 1 . . Known Exits Taken . | . . . . . . . Unknown Exits Taken 6 | 1 1 1 1 1 1 . Scrap Searched 1 | . . . . 1 . . Spaces Dug 12 | . . 12 . . . . Terrain Destroyed 34 | . . 13 . 8 13 . Melee . | . . . . . . . Projectile 13 | . . 13 . . . . AOE 21 | . . . . 8 13 . Terrain Rammed . | . . . . . . . Walls Destroyed . | . . . . . . . Machines Disabled . | . . . . . . . Actions | -11 -10 -10 -10 -9 -8 -7 --------- Run | Yrd Mat Min Exi Min Mat Fac Total 2634 | 54 378 99 706 249 892 256 Wait 585 | . . . 35 14 536 . Move 1904 | 39 347 80 665 227 310 236 Hop . | . . . . . . . Pick Up 26 | 11 3 . 2 3 5 2 Fast Attach . | . . . . . . . Attach 18 | 4 2 1 1 . 3 7 Detach . | . . . . . . . Swap 8 | . . . 2 1 4 1 Drop 5 | . . 1 1 . 1 2 Fire 80 | . 23 17 . 2 32 6 Melee . | . . . . . . . Ram 3 | . . . . . 1 2 Kick . | . . . . . . . Crush 5 | . 3 . . 2 . . Escape Stasis . | . . . . . . . Rewire . | . . . . . . . Trap . | . . . . . . . Miscellaneous . | . . . . . . . Route ------- -11/Scrapyard -10/Materials (discovered 2 exits: [*Mat] / [*Min]) -10/Mines -10/Exiles (discovered 2 exits: [*Min x2]) -9/Mines -8/Materials -7/Factory (discovered 4 exits: Fac x4) History --------- Turn | Location | Event 33 | -11/Scrapyard | Discovered new exit (range 15) 73 | -11/Scrapyard | Entered Materials 304 | -10/Materials | Build established: Mutant 436 | -10/Materials | Discovered new exit (range 9) 520 | -10/Materials | Discovered new exit (range 12) 703 | -10/Materials | Entered Mines 891 | -10/Mines | Deemed a non-threat by the Exiles lab entrance 891 | -10/Mines | Discovered new exit (range 4) 898 | -10/Mines | Entered Exiles 919 | -10/Exiles | Discovered new exit (range 15) 966 | -10/Exiles | Met 8R-AWN 996 | -10/Exiles | Met EX-HEX 1098 | -10/Exiles | Met EX-DEC 1146 | -10/Exiles | Learned location of Zion (-7) 1218 | -10/Exiles | Discovered new exit (range 14) 1414 | -10/Exiles | Visited The Gauntlet 1929 | -10/Exiles | Met EX-BIN 1962 | -10/Exiles | Aligned with FarCom system 1965 | -10/Exiles | Given EX-Vault access code 2092 | -10/Exiles | Opened EX-Vault 2161 | -10/Exiles | Found Cloak of Protection 2250 | -10/Exiles | Warned to stay clear of 0b10 Research branches 2457 | -10/Exiles | Left Exiles lab with Cloak of Protection 2457 | -10/Exiles | Entered Mines 2474 | -9/Mines | Met a Derelict bent on vengeance 2662 | -9/Mines | Found a damaged Exp. Sensor Array with a note attached 2667 | -9/Mines | Found Prototype Device 2792 | -9/Mines | Found a hidden stash of uninstalled traps 2881 | -9/Mines | Discovered new exit (range 9) 3030 | -9/Mines | Entered Materials 3030 | -8/Materials | Evolved 4 slots: Power x1, Propulsion x1, Utility x2 3402 | -8/Materials | Build established: Skirmisher 3908 | -8/Materials | Discovered new exit (range 5) 3920 | -8/Materials | Identified Exp. Sensor Array 4057 | -8/Materials | Entered Factory 4057 | -7/Factory | Evolved 2 slots: Propulsion x1, Utility x1 4081 | -7/Factory | Lost 4 parts (1n2u1w) 4245 | -7/Factory | Identified exit to Factory 4600 | -7/Factory | Garrison activated, responded to threat 4722 | -7/Factory | Core integrity fell below 50% 4732 | -7/Factory | Core integrity fell below 20% 4740 | -7/Factory | Destroyed by G-47 Trooper with Particle Gun Last Messages --------------- Map updated. ALERT: Suspicious activity at Terminal F013. Dispatching Investigation squad. Hover Unit destroyed. Slammed into G-47 Trooper. Destabilizing: System interference. Sensor Array temporarily disabled. Mining Laser temporarily disabled. Mining Laser destroyed. Airjet destroyed. Slammed into G-47 Trooper. Mic. Nuclear Core destroyed. Sensor Array destroyed. System corrupted by crushing effect (+2). Remote Datajack destroyed. Critical hit (Burn: +37). Knocked back. Critical hit (Burn: +37). G-47 Trooper destroyed. Critical hit (Burn: +37). Map ----- +----------------------------------------------------+ | ?????### ################## """ """ #?????????? | | ???????# #????????????????# """ """ #?????????? | | ???????# #????????????????# """ """ #?????????? | | ???????# #????????????????# #?????????? | | ???????# ?????????????????# !! +?????????? | | ???????# ?????????????????# !! #?????????? | | ???????# ?????????????????# !! #?????????? | | ???????? ?????????????????# ######+#?????????? | | ??????????????????????????# #????????????????? | | ??????????????????????????# #?? ????????????? | | ??????????????????????????+ +?? ????????????? | | ??????????????????????????# #?? [??